Cogmind - Beta 14 @@@ ROGUE MODE // 2024.08.13 @ 19:32:41 Player: noob Result: Destroyed by Y-54 Guardian with Gatling Laser Performance ------------- Evolutions (0) 0 Regions Visited (4) 800 Robots Destroyed (30) 150 Value Destroyed (718) 718 Prototype IDs (0) 0 Alien Tech Used (0) 0 Bonus (-272) -272 TOTAL SCORE: 1396 Bonus ------- Friendly Fire -272 Cogmind --------- Core Integrity 0/250 Matter 157/300 Energy 170/170 System Corruption 0% Temperature Cool (54) Movement Core (150) Ox2 Location -7/Recycling Parts ------- > --- POWER (1) -------- Makeshift Power Source > --- PROPULSION (2) --- (None) > --- UTILITY (2) ------ (None) > --- WEAPON (2) ------- Rocket Launcher > --- INVENTORY (5) ---- Small Storage Unit Advanced Visual Processing Unit Sensor Array Rocket Launcher Peak State ------------ > --- POWER ------------ Makeshift Power Source > --- PROPULSION ------- Carbon-fiber Leg Makeshift Leg > --- UTILITY ---------- Small Storage Unit Subdweller Optics > --- WEAPON ----------- Rocket Launcher Rocket Launcher > --- INVENTORY -------- Light Deuterium Engine Aluminum Leg Large Storage Unit Sensor Array Scrap Shield Rocket Launcher Rocket Launcher [Rating: 19] Favorites ----------- Power Light Ion Engine Engine Light Ion Engine Propulsion Aluminum Leg Leg Aluminum Leg Utility Small Storage Unit Device Sensor Array Storage Small Storage Unit Protection Scrap Shield Weapon Rocket Launcher Energy Gun Medium Laser Ballistic Gun Assault Rifle Ballistic Cannon Light Cannon Launcher Rocket Launcher Impact Weapon Heavy Hammer Build | -11 -10 -10 -10 -7 ------- Run | Yrd Mat Min Sub Rec Slots Evolved . | . . . . . Power . | . . . . . Propulsion . | . . . . . Utility . | . . . . . Weapon . | . . . . . Parts Attached 34 | 7 14 2 10 1 Power 3 | 1 1 . 1 . Engine 3 | 1 1 . 1 . Core . | . . . . . Reactor . | . . . . . Propulsion 5 | 2 1 . 2 . Treads . | . . . . . Leg 5 | 2 1 . 2 . Wheel . | . . . . . Hover . | . . . . . Flight . | . . . . . Utility 8 | 1 2 . 5 . Device 6 | . 2 . 4 . Storage 1 | 1 . . . . Processor . | . . . . . Hackware . | . . . . . Protection 1 | . . . 1 . Artifact . | . . . . . Weapon 18 | 3 10 2 2 1 Energy Gun 3 | 1 1 . . 1 Energy Cannon . | . . . . . Ballistic Gun 3 | 2 1 . . . Ballistic Cannon 2 | . 2 . . . Launcher 9 | . 5 2 2 . Special Weapon . | . . . . . Impact Weapon 1 | . 1 . . . Slashing Weapon . | . . . . . Piercing Weapon . | . . . . . Special Melee Weapon . | . . . . . Unidentified Prototypes . | . . . . . Parts Lost 8 | . 3 . 2 3 Power 1 | . 1 . . . Propulsion 2 | . . . 1 1 Utility 2 | . 1 . . 1 Weapon 3 | . 1 . 1 1 Highest Loss Streak 3 | . 3 . 1 3 To Critical Strikes . | . . . . . Average Slot Usage (%) 96 | . 96 100 99 71 Engine 13 | . 13 14 14 14 Leg 26 | . 27 28 27 14 Device 12 | . 12 14 13 . Storage 12 | . 14 14 13 . Protection 1 | . . . . 14 Energy Gun 2 | . 4 . . 12 Ballistic Gun 1 | . 3 . . . Ballistic Cannon 1 | . 5 1 . . Launcher 21 | . 12 24 27 15 Peak Build Rating 19 | 6 10 10 19 18 Average Rating 12 | 2 7 9 15 17 On Entrance 8 | . 6 9 10 16 Naked Turns . | . . . . . Heaviest Build 30 | 14 17 17 30 30 Greatest Support 35 | 20 20 20 35 20 Greatest Overweight (x) 1 | . 1 . 1 1 Average Overweight (x) . | . . . . 1 Largest Inventory Capacity 8 | 8 8 8 8 5 Average Capacity 7 | 5 8 8 7 5 Most Carried 8 | 5 8 8 8 4 Average Carried 6 | 3 5 7 7 3 Final Capacity 8 | 8 8 8 5 5 Final Carried 8 | 2 7 8 2 4 Class Distribution -------------------- 100% | Mutant Dominant Class ---------------- Mutant | -10/Materials Mutant | -10/Mines Mutant | -10/Subcaves Mutant | -7/Recycling Resources | -11 -10 -10 -10 -7 ----------- Run | Yrd Mat Min Sub Rec Matter Collected 902 | 118 457 58 169 100 Remotely . | . . . . . Salvage Created 518 | . 337 . 181 . Parts 40 | . 25 . 15 . Haulers Intercepted . | . . . . . Recyclers Shooed . | . . . . . Parts Field Recycled . | . . . . . Retrieved Matter . | . . . . . Parts Self-Destructed 15 | . . . 15 . Prevented . | . . . . . Kills | -11 -10 -10 -10 -7 ------- Run | Yrd Mat Min Sub Rec Combat Hostiles Destroyed 21 | . 12 . 9 . Guns 5 | . 5 . . . AOE 16 | . 7 . 9 . Classes Destroyed 8 | . 5 . 3 . Worker 1 | . 1 . . . Operator 2 | . 2 . . . Turret 2 | . . . 2 . Watcher 2 | . 2 . . . Swarmer 9 | . 3 . 6 . Grunt 12 | . 9 . 3 . Subdweller 1 | . . . 1 . Guerrilla 1 | . . . 1 . Best Kill Streak 4 | . 4 . 4 . Combat Bots Only 4 | . 3 . 4 . Max Kills in Single Turn 3 | . 2 . 3 . Gunslinging . | . . . . . Exploded 2 | . 2 . 2 . Melee . | . . . . . Uniques/NPCs Destroyed . | . . . . . Combat | -11 -10 -10 -10 -7 -------- Run | Yrd Mat Min Sub Rec Hostile Shots Fired 176 | . 64 . 64 48 Missed 62 | . 15 . 29 18 Damage Taken 1452 | . 681 . 458 313 Core 256 | . 171 . 69 16 Absorbed by Shields . | . . . . . Core Remaining (%) 100 | 100 . . . . Volleys Fired 68 | . 48 . 17 3 Largest 2 | . 2 . 2 1 Hottest 70 | . 70 . 66 33 Shots Fired 108 | . 76 . 29 3 Gun 56 | . 56 . . . Cannon 3 | . 3 . . . Launcher 49 | . 17 . 29 3 Special . | . . . . . Kinetic 30 | . 30 . . . Thermal 29 | . 29 . . . Explosive 49 | . 17 . 29 3 Electromagnetic . | . . . . . Robot Hit Streak 7 | . 7 . 4 5 Robot Miss Streak 3 | . 3 . 1 . Penetration Max . | . . . . . Secondary Targets 1 | . 1 . . . Max Gunslinging Chain 1 | . 1 . . . Shots Hit Robots 55 | . 42 . 10 3 Core Hits 56 | . 29 . 26 1 Critical Kills . | . . . . . Critical Parts Destroyed 1 | . 1 . . . Critical Strikes 4 | . 4 . . . Burn 3 | . 3 . . . Destroy 1 | . 1 . . . Melee Attacks 1 | . 1 . . . Impact 1 | . 1 . . . Slashing . | . . . . . Piercing . | . . . . . Sneak Attacks . | . . . . . Combat Hostiles . | . . . . . Follow-up Attacks . | . . . . . Damage Inflicted 2511 | . 1256 . 1202 53 Guns 378 | . 378 . . . Cannons 18 | . 18 . . . Explosions 2115 | . 860 . 1202 53 Melee . | . . . . . Ramming . | . . . . . Kinetic 122 | . 122 . . . Thermal 329 | . 329 . . . Explosive 2060 | . 805 . 1202 53 Electromagnetic . | . . . . . Impact . | . . . . . Slashing . | . . . . . Piercing . | . . . . . Highest Corruption . | . . . . . Average Corruption . | . . . . . Corruption Purged . | . . . . . Corruption Blocked . | . . . . . Overload Shots . | . . . . . Overflow Damage 43 | . 38 . 5 . Projectiles . | . . . . . Explosions 43 | . 38 . 5 . Melee . | . . . . . Knockbacks . | . . . . . Impact . | . . . . . Kinetic . | . . . . . Secondary . | . . . . . Self-Inflicted Damage 241 | . 100 . 54 87 Shots 9 | . 3 . 3 3 Rammed . | . . . . . Targets Rammed . | . . . . . Kicked . | . . . . . Crushed . | . . . . . Highest Temperature 242 | . 242 . 5 36 Average Temperature 102 | . 109 . 5 20 Received Heat Transfer 582 | . 330 . 180 72 Siege Activations . | . . . . . Robots Corrupted . | . . . . . Combat Hostiles . | . . . . . Parts Fried . | . . . . . Impact Corruptions . | . . . . . Robots Melted . | . . . . . Combat Hostiles . | . . . . . Parts Melted 1 | . 1 . . . Heat Transferred 1086 | . 1086 . . . Parts Sabotaged . | . . . . . Parts Stolen . | . . . . . Parts Stripped . | . . . . . Power Chain Reactions . | . . . . . Alert | -11 -10 -10 -10 -7 ------- Run | Yrd Mat Min Sub Rec Peak Influence 292 | . 292 42 . 134 Initial 134 | . . 42 . 134 Average 91 | . 112 32 . 133 Maximum Alert Level 1 | . 1 . . . Low Security (%) 86 | 100 76 100 . 100 Level 1 13 | . 23 . . . Level 2 . | . . . . . Level 3 . | . . . . . Level 4 . | . . . . . Level 5 . | . . . . . High Security . | . . . . . Max Security . | . . . . . Squads Dispatched 3 | . 3 . . . Investigation . | . . . . . Extermination . | . . . . . Reinforcement 3 | . 3 . . . Assault . | . . . . . Garrison . | . . . . . Intercept . | . . . . . Searches Triggered . | . . . . . Construction Impeded . | . . . . . Haulers Reinforced . | . . . . . Active Scanning Responses . | . . . . . Cargo Convoy Interrupts . | . . . . . Stealth | -11 -10 -10 -10 -7 --------- Run | Yrd Mat Min Sub Rec Distress Signals 1 | . 1 . . . Communications Jammed . | . . . . . Distress Signals . | . . . . . Times Spotted 59 | . 22 1 34 2 Peak Tracking Total 6 | . 3 . 6 2 Tactical Retreats 4 | . 1 . 3 . Traps | -11 -10 -10 -10 -7 ------- Run | Yrd Mat Min Sub Rec Traps Triggered . | . . . . . Indirectly . | . . . . . Trap Hack Attempts . | . . . . . Triggered . | . . . . . Disarmed . | . . . . . Reprogrammed . | . . . . . Reused . | . . . . . Traps Extracted . | . . . . . Installed . | . . . . . Triggered . | . . . . . Machines | -11 -10 -10 -10 -7 ---------- Run | Yrd Mat Min Sub Rec Machines Disabled 8 | . 5 . 3 . Max in Single Turn 2 | . 2 . 2 . Machines Repaired . | . . . . . Machines Dismantled . | . . . . . Machines Sabotaged . | . . . . . Overloaded Fab Kills . | . . . . . Hacking | -11 -10 -10 -10 -7 --------- Run | Yrd Mat Min Sub Rec Machines Accessed 4 | . 2 . . 2 Terminals 1 | . 1 . . . Fabricators . | . . . . . Repair Stations . | . . . . . Recycling Units 3 | . 1 . . 2 Scanalyzers . | . . . . . Garrison Access . | . . . . . Total Hacks 17 | . 9 . . 8 Successful 12 | . 6 . . 6 Failed 5 | . 3 . . 2 Catastrophic . | . . . . . Database Lockouts . | . . . . . Manual . | . . . . . Terminals 3 | . 3 . . . Fabricators . | . . . . . Repair Stations . | . . . . . Recycling Units 14 | . 6 . . 8 Scanalyzers . | . . . . . Garrison Access . | . . . . . Terminal Hacks 1 | . 1 . . . Unreport Threat 1 | . 1 . . . Fabricator Hacks . | . . . . . Repair Station Hacks . | . . . . . Recycling Unit Hacks 11 | . 5 . . 6 Recycle Component 3 | . 3 . . . Process 2 | . 1 . . 1 Report Inventory 5 | . 1 . . 4 Retrieve Matter 1 | . . . . 1 Scanalyzer . | . . . . . Garrison Access Hacks . | . . . . . Unauthorized Hacks . | . . . . . Terminals . | . . . . . Fabricators . | . . . . . Repair Stations . | . . . . . Recycling Units . | . . . . . Scanalyzers . | . . . . . Garrison Access . | . . . . . Data Cores Recovered 1 | . 1 . . . Used . | . . . . . Hacking Detections 4 | . 2 . . 2 Full Trace Events 2 | . 2 . . . Feedback Events . | . . . . . Feedback Blocked . | . . . . . Robot Schematics Acquired . | . . . . . Robots Built . | . . . . . Authchips . | . . . . . Time . | . . . . . Total Robot Build Rating . | . . . . . Part Schematics Acquired . | . . . . . Parts Built . | . . . . . Authchips . | . . . . . Time . | . . . . . Total Part Build Rating . | . . . . . Parts Repaired . | . . . . . Time . | . . . . . Parts Recycled 3 | . 3 . . . Recycled Matter 175 | . 150 . . 25 Retrieved Matter 25 | . . . . 25 Retrieved Components . | . . . . . Parts Scanalyzed . | . . . . . Part Schematics Acquired . | . . . . . Parts Damaged . | . . . . . Bothacking | -11 -10 -10 -10 -7 ------------ Run | Yrd Mat Min Sub Rec Used RIF Installer . | . . . . . Robots Hacked . | . . . . . Non-combat . | . . . . . Combat . | . . . . . Robot Hacks Applied . | . . . . . Relay Couplers Released . | . . . . . Fabnet Peak Effective % . | . . . . . Robots Rewired . | . . . . . Allies Hacked . | . . . . . Hacks Repelled . | . . . . . Allies | -11 -10 -10 -10 -7 -------- Run | Yrd Mat Min Sub Rec Total Allies 3 | . . 3 . . Largest Group 3 | . . 3 3 . Highest-Rated Group 40 | . . 40 40 . Highest-Rated Ally 16 | . . 16 16 . Total Orders . | . . . . . Ally Attacks 17 | . . . 17 . Total Damage 141 | . . . 141 . Kills . | . . . . . Allies Corrupted . | . . . . . Allies Melted . | . . . . . Intel | -11 -10 -10 -10 -7 ------- Run | Yrd Mat Min Sub Rec Robot Analysis Total . | . . . . . Derelict Logs Recovered 4 | . . 3 1 . Drone Launches . | . . . . . Drone Recoveries . | . . . . . Exploration | -11 -10 -10 -10 -7 ------------- Run | Yrd Mat Min Sub Rec Turns Passed 3637 | 41 1102 513 1721 260 Spaces Moved 2584 | 35 738 425 1267 119 Core 21 | 21 . . . . Treads . | . . . . . Legs 2563 | 14 738 425 1267 119 Wheels . | . . . . . Hover . | . . . . . Flight . | . . . . . Fastest Speed 50 | 50 120 120 120 210 Average Speed 127 | 78 120 120 128 210 Slowest Speed 210 | 120 190 120 210 210 Overloaded Moves . | . . . . . Propulsion Burnouts . | . . . . . Robots Hopped . | . . . . . Cave-ins Triggered . | . . . . . Exploration Rate (%) 44 | 3 95 56 55 15 Regions Visited 4 Branch Regions 3 Pre-discovered Areas 2 | . . 1 1 . Known Exits Taken . | . . . . . Unknown Exits Taken 4 | 1 1 1 1 . Scrap Searched 3 | . . 1 2 . Spaces Dug 21 | . . . 21 . Terrain Destroyed 282 | . 87 . 173 22 Melee . | . . . . . Projectile . | . . . . . AOE 282 | . 87 . 173 22 Terrain Rammed . | . . . . . Walls Destroyed . | . . . . . Machines Disabled . | . . . . . Actions | -11 -10 -10 -10 -7 --------- Run | Yrd Mat Min Sub Rec Total 2814 | 46 876 427 1340 125 Wait 81 | . 53 . 28 . Move 2580 | 34 737 424 1266 119 Hop . | . . . . . Pick Up 29 | 5 17 1 4 2 Fast Attach 3 | 3 . . . . Attach 10 | 3 5 . 2 . Detach 2 | . . . 2 . Swap 21 | 1 9 2 8 1 Drop 19 | . 6 . 13 . Fire 68 | . 48 . 17 3 Melee 1 | . 1 . . . Ram . | . . . . . Kick . | . . . . . Crush . | . . . . . Escape Stasis . | . . . . . Rewire . | . . . . . Trap . | . . . . . Miscellaneous . | . . . . . Route ------- -11/Scrapyard -10/Materials (discovered 5 exits: *Mat x3 / [*Min x2]) -10/Mines (discovered 3 exits: *Mat x2 / [*Sub]) -10/Subcaves -7/Recycling History --------- Turn | Location | Event 14 | -11/Scrapyard | Discovered new exit (range 14) 42 | -11/Scrapyard | Entered Materials 303 | -10/Materials | Build established: Mutant 313 | -10/Materials | Discovered new exit (range 15) 371 | -10/Materials | Core integrity fell below 50% 403 | -10/Materials | Lost 3 parts (1p1u1w) 651 | -10/Materials | Discovered new exit (range 14) 730 | -10/Materials | Discovered new exit (range 16) 1020 | -10/Materials | Discovered new exit (range 10) 1132 | -10/Materials | Discovered new exit (range 9) 1144 | -10/Materials | Entered Mines 1151 | -10/Mines | Assembled infested the area 1154 | -10/Mines | Learned location of Zion (-7) 1156 | -10/Mines | Identified exit to Materials 1216 | -10/Mines | Met 8R-AWN 1416 | -10/Mines | Discovered exit to Materials (range 6) 1595 | -10/Mines | Assisted by bots powering up and referring to "LRC-V3" 1626 | -10/Mines | Discovered new exit (range 6) 1657 | -10/Mines | Entered Subcaves 1657 | -10/Subcaves | Accompanied by 3 allies 1735 | -10/Subcaves | Ambushed by swarm of Subdwellers 1745 | -10/Subcaves | Ambushed by Subdwellers from Twisted Machinery 1746 | -10/Subcaves | Ambushed by Subdwellers from Twisted Machinery 1752 | -10/Subcaves | Ambushed by Subdweller buried in earth 1776 | -10/Subcaves | Lost 3 allies 1814 | -10/Subcaves | Disturbed a concealed Subdweller 2297 | -10/Subcaves | A Subdweller sparked back to life 2561 | -10/Subcaves | Learned location of Storage (-7) 2780 | -10/Subcaves | Shifting Twisted Machinery released Hvy. Riot Gun 2788 | -10/Subcaves | Shifting Twisted Machinery released Spk. Treads 2788 | -10/Subcaves | Shifting Twisted Machinery released Battle Cannon 2890 | -10/Subcaves | A swath of the cavern ceiling suddenly collapsed 3114 | -10/Subcaves | Core integrity fell below 20% 3350 | -10/Subcaves | Discovered new exit (range 13) 3378 | -10/Subcaves | Entered Recycling 3379 | -7/Recycling | Met a Zionite searching for Scraptown 3638 | -7/Recycling | Destroyed by Y-54 Guardian with Gatling Laser Last Messages --------------- 03514_ Connecting with Recycling Unit... >>Recycling(Report) Matter reserves: 0 Inventory: Flak Gun (60%) 03569_ Connecting with Recycling Unit... >>Recycling(Process) Analyzing inventory... Recycling at 100% efficiency: Flak Gun (25) >>Recycling(Report) Matter reserves: 25 Inventory: Empty >>Retrieve(Matter) Matter ejected: 25 03630_ Y-54 Guardian springs to life. 03631_ Lightning Gun destroyed. 03636_ Scrap Shield destroyed. 03636_ Destroyed Scrap Shield. 03638_ Mak. Leg destroyed. Map ----- +----------------------------------------------------+ | ?????????????????????????????????????????????????? | | ?????????????????????????????????????????????????? | | ?????????????????????????????????????????????????? | | ?????????????????????????????????????????????????? | | ?????????????????????????????????????????????????? | | ?????????????????????????????????????????????????? | | ?????????????????????????????????????????????????? | | ?????????????????????????????????????????????????? | | ?????????????????????????????????????????????????? | | ??????????????????????????????????? ?????????????? | | ??????????????????????????????????##+##??????????? | | ?????????????????????????????????? ??????????? | | ??????????????????????????????????# #????????### | | ??????????????????????????##??????# #????????# | | ???????????????" ????????? ??????# #????????# | | ???????????????" ????????? ??????+ #????????# | | ??????????????"" ???????? ??????# #????????# | | ?????????????"" ??????? ??????# #????????# | | ???????????? ??#+## #####??# #????????# | | ????????????? ### ##?# #???###### | | ??????????????" ### ##??#"""## | | ??????????????"" ## ####"Y"#### | | ??????????????"" Y ### | | ?????????????""" | | ????????????""" ## | | ?????????? @ ## ########### | | ?????????? #########?????????? | | ?????????????#############Y#####?????????????????? | | ?????????????????????????###?????????????????????? | | ?????????????????????????????????????????????????? | | ?????????????????????????????????????????????????? | | | | | | | | | | | | | | | | | | | | | | | | | | | | | | | | | | | | | | | +----------------------------------------------------+ Best States ------------- Heat Dissipation 25 Energy Generation 15 Energy Capacity 250 Matter Stores 300 Matter Capacity 300 Sight Range 21 Robot Scan Range 14 Terrain Scan Density 10 Armor Coverage 800 Evasion (%) 55 Item Schematics ----------------- None Robot Schematics ------------------ None Fabricated ------------ Nothing Alien Tech Used ----------------- None Achievements -------------- Backstab Tourist Challenges ------------ None Game ------ Seed CloakingHybridTelecube Manual? 0 Play Time 00:31:43 Cumulative 3.7 hours Start 2024.08.13 @ 18:57:50 End 2024.08.13 @ 19:32:41 Sessions 1 Manual Loads 0 Difficulty Rogue Special Mode None Game No. 7 Rogue 7 Adventurer 0 Explorer 0 Win Type - Total 0 Types 0/0/0/0/0/0/0/0/0 Lore% 2 Gallery% 6 Achievement% 8 Wizard Run 0 Options --------- Layout 2 ASCII 0 Keyboard 0 Movement Mouse Keybinds 0 Fullscreen 0 Font 20/X11 Map View 64x51 Zoom Use 0% Tactical HUD 1 Map Filters NONE Filters NONE Steam 1 RUN: 6bf8b6a8-0e57-4650-a99f-758e0130360f